fUST/lending_fUST_20250221
["ID","MTS","AMOUNT","RATE_DAILY","PERIOD"]
[353901071,1740119455164,-152.0622986,0.00014773,2]
[353901072,1740119455174,-500.0,0.00014773,2]
[353901073,1740119455183,-501.6663113,0.00014773,2]
[353901074,1740119455192,-156.168,0.000148,2]
[353901075,1740119455201,-156.168,0.000148,2]
[353901076,1740119455210,-151.423635,0.000148,2]
[353901077,1740119455220,-19750.5277576,0.000148,2]
[353901078,1740119455232,-48500.91043651,0.00014849,5]
[353901079,1740119455338,-47071.42886966,0.00014849,5]
[353901080,1740119455347,-151.0,0.00014849,2]
[353901081,1740119455357,-662.31993641,0.00014849,2]
[353901082,1740119455368,-160.48006359,0.00014849,2]
[353901083,1740119455377,-450.27622254,0.00014849,2]
[353901084,1740119455387,-500.0,0.00014849,2]
[353901085,1740119455395,-609.59,0.00014849,2]
[353901086,1740119455405,-647.77147116,0.00014849,2]
[353901087,1740119455416,-500.0,0.00014849,2]
[353901088,1740119455426,-500.0,0.00014849,2]
[353901089,1740119455436,-632.29,0.00014849,2]
[353901090,1740119455445,-500.0,0.00014849,2]
[353901091,1740119455454,-500.0,0.00014849,2]
[353901092,1740119455463,-747.26,0.00014849,2]
[353901093,1740119455472,-567.67,0.00014849,2]
[353901094,1740119455482,-500.0,0.00014849,2]
[353901095,1740119455495,-509.64,0.00014849,2]
[353901096,1740119455506,-500.0,0.00014849,2]
[353901097,1740119455517,-500.0,0.00014849,2]
[353901098,1740119455526,-507.55643845,0.00014849,2]
[353901099,1740119455536,-500.0,0.00014849,2]
[353901100,1740119455546,-1332.43,0.00014849,2]
[353901101,1740119455556,-151.0,0.00014849,2]
[353901102,1740119455565,-500.0,0.00014849,2]
[353901103,1740119455574,-500.0,0.00014849,2]
[353901104,1740119455584,-1632.63,0.00014849,2]
[353901105,1740119455594,-10267.21774735,0.00014849,2]
[353901106,1740119455606,-2628.49225265,0.00014849,2]
[353901107,1740119455616,-151.0,0.00014849,2]
[353901108,1740119455625,-1825.65,0.00014849,2]
[353901109,1740119455635,-281.85561485,0.00014849,2]
[353901110,1740119455646,-1605.73168503,0.00014849,2]
[353901111,1740119455723,-501.79654225,0.00013698,2]
[353901112,1740119455732,-521.58,0.00014356,2]
[353901113,1740119455741,-521.58,0.00014438,2]
[353901114,1740119455750,-521.58,0.0001452,2]
[353901115,1740119455760,-521.58,0.00014602,2]
[353901116,1740119455769,-521.58,0.00014684,2]
[353901117,1740119455778,-521.58,0.00014767,2]
[353901118,1740119455788,-23113.0858044,0.00014848,5]
[353901119,1740119455797,-3207.10270012,0.00014849,2]
[353901120,1740119455806,-1658.55,0.00014849,2]
[353901121,1740119455815,-500.0,0.00014849,2]
[353901122,1740119455824,-970.01,0.00014849,2]
[353901123,1740119455833,-716.97,0.00014849,2]
[353901124,1740119455843,-500.0,0.00014849,2]
[353901125,1740119455853,-889.73,0.00014849,2]
[353901126,1740119455862,-571.96,0.00014849,2]
[353901127,1740119455872,-2539.53,0.00014849,2]
[353901128,1740119455882,-23184.99,0.00014849,2]
[353901129,1740119455891,-1532.0,0.00014849,2]
[353901130,1740119455901,-500.0,0.00014849,2]
[353901131,1740119455911,-500.0,0.00014849,2]
[353901132,1740119455920,-1300.19,0.00014849,2]
[353901133,1740119456019,-1032.31,0.00014849,2]
[353901134,1740119456030,-517.04,0.00014849,2]
[353901135,1740119456039,-2344.36,0.00014849,2]
[353901136,1740119456049,-891.26,0.00014849,2]
[353901137,1740119456058,-4367.26,0.00014849,2]
[353901138,1740119456067,-500.0,0.00014849,2]
[353901139,1740119456077,-822.25,0.00014849,2]
[353901140,1740119456086,-10184.0,0.00014849,2]
[353901141,1740119456096,-191.49952045,0.00014849,2]
[353901142,1740119456117,-501.32047955,0.00014849,2]
[353901143,1740119456127,-1325.83470785,0.00014849,2]
[353901144,1740119652204,-1000.0,0.000175,60]
[353901146,1740120550376,234.065846,9.041e-05,2]
[353901180,1740120632068,-600.0,0.00011588,2]
[353901182,1740120632078,-600.0,0.00012958,2]
[353901184,1740120632088,-160.0,0.00013496,2]
[353901186,1740120632097,-300.0,0.00013497,2]
[353901188,1740120632107,-652.8,0.00013498,2]
[353901197,1740120632184,-4886.1651939,0.00013498,2]
[353901199,1740120632196,-2350.0,0.00013498,2]
[353901202,1740120632207,-746.335558,0.00013498,2]
[353901213,1740120632307,-1001.57265084,0.00013498,2]
[353901216,1740120632319,-321.06130044,0.00013498,2]
[353901218,1740120632330,-8459.67423603,0.00013498,2]
[353901220,1740120632340,-18648.5346444,0.000135,2]
[353901222,1740120632349,-161.13689564,0.00013597,2]
[353901224,1740120632359,-200.0,0.000136,2]
[353901225,1740120632368,-200.0,0.000136,2]
[353901227,1740120632378,-200.0,0.000136,3]
[353901229,1740120632387,-200.0,0.000136,3]
[353901230,1740120632397,-159.36279416,0.000136,3]
[353901255,1740120637929,-29.99980017,0.000136,3]
[353901256,1740120637939,-500.38026704,0.00013673,2]
[353901257,1740120637948,-501.15348366,0.00013673,2]
[353901258,1740120637958,-500.0,0.00013673,2]
[353901259,1740120637967,-500.47489498,0.00013673,2]
[353901260,1740120637978,-500.15058549,0.00013673,2]
[353901261,1740120637987,-275.27015905,0.00013673,2]
[353901262,1740120637996,-500.44003634,0.00013673,2]
[353901263,1740120638007,-500.0,0.00013673,2]
[353901264,1740120638016,-500.0,0.00013673,2]
[353901265,1740120638026,-500.2151841,0.00013673,2]
[353901266,1740120638035,-500.0,0.00013673,2]
[353901267,1740120638045,-5381.9562727,0.0001368,2]
[353901268,1740120638058,-3538.52183453,0.0001368,2]
[353901269,1740120638070,-4069.08304494,0.0001368,2]
[353901270,1740120638086,-455.18249544,0.0001368,2]
[353901271,1740120638098,-25535.46443011,0.0001368,2]
[353901273,1740120638107,-160.0,0.00013697,2]
[353901274,1740120638117,-500.0,0.00013698,2]
[353901275,1740120638126,-500.0,0.00013698,2]
[353901276,1740120638136,-500.0,0.00013698,2]
[353901277,1740120638145,-500.0,0.00013698,2]
[353901278,1740120638156,-500.0,0.00013698,2]
[353901279,1740120638165,-408.63771827,0.00013698,2]
[353901280,1740120638175,-500.0,0.00013698,2]
[353901281,1740120638185,-460.202981,0.00013698,2]
[353901282,1740120638194,-500.0,0.00013698,2]
[353901283,1740120638203,-213.48803046,0.00013698,2]
[353901285,1740120638213,-211.98052384,0.00013698,2]
[353901286,1740120638222,-500.0,0.00013698,2]
[353901287,1740120638232,-500.0,0.00013698,2]
[353901288,1740120638241,-500.0,0.00013698,2]
[353901289,1740120638250,-500.0,0.00013698,2]
[353901290,1740120638259,-500.0,0.00013698,2]
[353901291,1740120638268,-500.0,0.00013698,2]
[353901292,1740120638278,-500.0,0.00013698,2]
[353901293,1740120638287,-500.0,0.00013698,2]
[353901294,1740120638297,-500.0,0.00013698,2]
[353901295,1740120638306,-500.0,0.00013698,2]
[353901296,1740120638316,-500.0,0.00013698,2]
[353901297,1740120638325,-500.0,0.00013698,2]
[353901298,1740120638335,-500.0,0.00013698,2]
[353901299,1740120638344,-504.45646631,0.00013698,2]
[353901300,1740120638354,-500.69589319,0.00013698,2]
[353901301,1740120638364,-501.12752641,0.00013698,2]
[353901302,1740120638373,-500.0,0.00013698,2]
[353901303,1740120638383,-501.582672,0.00013698,2]
[353901304,1740120638392,-500.47222849,0.00013698,2]
[353901305,1740120638401,-500.78484223,0.00013698,2]
[353901306,1740120638411,-1204.12,0.00013698,2]
[353901307,1740120638421,-500.0,0.00013698,2]
[353901308,1740120638431,-500.82673441,0.00013698,2]
[353901309,1740120638440,-500.0,0.00013698,2]
[353901310,1740120638450,-502.36948522,0.00013698,2]
[353901311,1740120638459,-500.0,0.00013698,2]
[353901312,1740120638468,-500.71466162,0.00013698,2]
[353901313,1740120638478,-502.24145387,0.00013698,2]
[353901314,1740120638487,-500.0,0.00013698,2]
[353901315,1740120638497,-451.91325582,0.00013698,2]
[353901316,1740120638506,-500.0,0.00013698,2]
[353901317,1740120638515,-500.0,0.00013698,2]
[353901318,1740120638525,-500.0,0.00013698,2]
[353901319,1740120638535,-506.6673983,0.00013698,2]
[353901320,1740120638544,-500.0,0.00013698,2]
[353901321,1740120638554,-501.9851118,0.00013698,2]
[353901322,1740120638563,-231.77031703,0.00013698,2]
[353901323,1740120638572,-501.08674826,0.00013698,2]
[353901324,1740120638582,-501.38163488,0.00013698,2]
[353901325,1740120638591,-500.0,0.00013698,2]
[353901326,1740120638600,-500.0,0.00013698,2]
[353901327,1740120638609,-502.38985434,0.00013698,2]
[353901328,1740120638619,-501.57417996,0.00013698,2]
[353901329,1740120638628,-500.0,0.00013698,2]
[353901330,1740120638637,-501.86618136,0.00013698,2]
[353901331,1740120638646,-500.0,0.00013698,2]
[353901332,1740120638655,-500.94095044,0.00013698,2]
[353901333,1740120638665,-590.04752695,0.00013698,2]
[353901334,1740120638674,-504.04147265,0.00013698,2]
[353901335,1740120638683,-504.02125148,0.00013698,2]
[353901336,1740120638692,-500.0,0.00013698,2]
[353901337,1740120638701,-664.07,0.00013698,2]
[353901338,1740120638711,-504.46757716,0.00013698,2]
[353901339,1740120638720,-500.0,0.00013698,2]
[353901340,1740120638729,-507.76117941,0.00013698,2]
[353901341,1740120638738,-558.34,0.00013698,2]
[353901342,1740120638747,-500.0,0.00013698,2]
[353901343,1740120638757,-501.04490349,0.00013698,2]
[353901344,1740120638766,-200.83597871,0.00013698,2]
[353901345,1740120638775,-508.44709384,0.00013698,2]
[353901346,1740120638785,-500.0,0.00013698,2]
[353901347,1740120638795,-500.0,0.00013698,2]
[353901348,1740120638806,-500.0,0.00013698,2]
[353901349,1740120638932,-500.0,0.00013698,2]
[353901350,1740120638942,-500.0,0.00013698,2]
[353901351,1740120638951,-502.77656829,0.00013698,2]
[353901352,1740120638961,-1000.0,0.00013698,2]
[353901353,1740120638970,-330.39211041,0.00013698,2]
[353901354,1740120638979,-838.28,0.00013698,2]
[353901355,1740120638989,-500.0,0.00013698,2]
[353901356,1740120638998,-854.95,0.00013698,2]
[353901357,1740120639007,-500.0,0.00013698,2]
[353901358,1740120639016,-500.0,0.00013698,2]
[353901359,1740120639026,-509.99386251,0.00013698,2]
[353901360,1740120639036,-500.0,0.00013698,2]
[353901361,1740120639045,-535.71,0.00013698,2]
[353901362,1740120639055,-500.0,0.00013698,2]
[353901363,1740120639064,-570.24341615,0.00013698,2]
[353901364,1740120639073,-500.0,0.00013698,2]
[353901365,1740120639083,-500.0,0.00013698,2]
[353901366,1740120639092,-501.28897225,0.00013698,2]
[353901367,1740120639102,-500.0,0.00013698,2]
[353901368,1740120639111,-502.4037985,0.00013698,2]
[353901369,1740120639120,-502.11399747,0.00013698,2]
[353901370,1740120639129,-500.0,0.00013698,2]
[353901371,1740120639139,-500.0,0.00013698,2]
[353901372,1740120639148,-502.39382738,0.00013698,2]
[353901373,1740120639157,-500.0,0.00013698,2]
[353901374,1740120639166,-500.0,0.00013698,2]
[353901375,1740120639175,-500.0,0.00013698,2]
[353901376,1740120639184,-500.0,0.00013698,2]
[353901377,1740120639193,-500.0,0.00013698,2]
[353901378,1740120639202,-946.87,0.00013698,2]
[353901379,1740120639212,-500.0,0.00013698,2]
[353901380,1740120639221,-503.19264668,0.00013698,2]
[353901381,1740120639230,-503.75191257,0.00013698,2]
[353901382,1740120639240,-500.0,0.00013698,2]
[353901383,1740120639249,-500.0,0.00013698,2]
[353901384,1740120639259,-500.0,0.00013698,2]
[353901385,1740120639268,-503.09369045,0.00013698,2]
[353901386,1740120639277,-500.0,0.00013698,2]
[353901387,1740120639287,-727.01,0.00013698,2]
[353901388,1740120639296,-518.52352108,0.00013698,2]
[353901389,1740120639305,-504.47075202,0.00013698,2]
[353901390,1740120639315,-502.17409511,0.00013698,2]
[353901391,1740120639324,-500.0,0.00013698,2]
[353901392,1740120639333,-558.0,0.00013698,2]
[353901393,1740120639343,-500.0,0.00013698,2]
[353901394,1740120639352,-500.84455635,0.00013698,2]
[353901395,1740120639362,-503.37933928,0.00013698,2]
[353901396,1740120639371,-500.0,0.00013698,2]
[353901397,1740120639380,-502.9436641,0.00013698,2]
[353901398,1740120639391,-500.0,0.00013698,2]
[353901399,1740120639400,-507.70170855,0.00013698,2]
[353901400,1740120639409,-500.0,0.00013698,2]
[353901401,1740120639418,-549.9,0.00013698,2]
[353901402,1740120639428,-613.4,0.00013698,2]
[353901403,1740120639437,-500.0,0.00013698,2]
[353901404,1740120639447,-503.78933649,0.00013698,2]
[353901405,1740120639457,-502.85106677,0.00013698,2]
[353901406,1740120639467,-501.84016908,0.00013698,2]
[353901407,1740120639476,-500.0,0.00013698,2]
[353901408,1740120639486,-501.64484581,0.00013698,2]
[353901409,1740120639495,-501.86272266,0.00013698,2]
[353901410,1740120639503,-500.0,0.00013698,2]
[353901411,1740120639513,-505.77012204,0.00013698,2]
[353901412,1740120639522,-500.0,0.00013698,2]
[353901413,1740120639532,-500.0,0.00013698,2]
[353901414,1740120639542,-500.0,0.00013698,2]
[353901415,1740120639551,-243.70395146,0.00013698,2]
[353901416,1740120639560,-502.76172559,0.00013698,2]
[353901417,1740120639570,-502.72281117,0.00013698,2]
[353901418,1740120639579,-500.0,0.00013698,2]
[353901419,1740120639588,-500.0,0.00013698,2]
[353901420,1740120639597,-500.0,0.00013698,2]
[353901421,1740120639606,-504.12576248,0.00013698,2]
[353901422,1740120639615,-500.0,0.00013698,2]
[353901423,1740120639625,-503.3761147,0.00013698,2]
[353901424,1740120639634,-500.0,0.00013698,2]
[353901425,1740120639643,-500.0,0.00013698,2]
[353901426,1740120639653,-500.0,0.00013698,2]
[353901427,1740120639662,-500.0,0.00013698,2]
[353901428,1740120639672,-500.0,0.00013698,2]
[353901429,1740120639682,-500.0,0.00013698,2]
[353901430,1740120639691,-500.0,0.00013698,2]
[353901431,1740120639701,-503.79483513,0.00013698,2]
[353901432,1740120639710,-504.33456902,0.00013698,2]
[353901433,1740120639719,-500.0,0.00013698,2]
[353901434,1740120639729,-1439.77,0.00013698,2]
[353901435,1740120639738,-501.90073531,0.00013698,2]
[353901436,1740120639747,-505.55404569,0.00013698,2]
[353901437,1740120639757,-500.0,0.00013698,2]
[353901438,1740120639766,-503.27147258,0.00013698,2]
[353901439,1740120639775,-641.22,0.00013698,2]
[353901440,1740120639784,-502.82692331,0.00013698,2]
[353901441,1740120639796,-504.15173115,0.00013698,2]
[353901442,1740120639806,-500.0,0.00013698,2]
[353901443,1740120639815,-500.0,0.00013698,2]
[353901444,1740120639825,-504.57936516,0.00013698,2]
[353901445,1740120639835,-504.99324987,0.00013698,2]
[353901446,1740120639845,-1628.44,0.00013698,2]
[353901447,1740120639855,-500.0,0.00013698,2]
[353901448,1740120639864,-500.0,0.00013698,2]
[353901449,1740120639874,-183.26128324,0.00013698,2]
[353901450,1740120639883,-500.0,0.00013698,2]
[353901451,1740120639893,-500.0,0.00013698,2]
[353901452,1740120639902,-500.0,0.00013698,2]
[353901453,1740120639911,-381.46592178,0.00013698,2]
[353901454,1740120639920,-500.0,0.00013698,2]
[353901455,1740120639930,-505.99159759,0.00013698,2]
[353901457,1740120639940,-503.85385095,0.00013698,2]
[353901459,1740120639950,-503.15477331,0.00013698,2]
[353901461,1740120639960,-5952.21,0.00013698,2]
[353901463,1740120639969,-500.0,0.00013698,2]
[353901464,1740120639978,-500.0,0.00013698,2]
[353901465,1740120639987,-852.78,0.00013698,2]
[353901466,1740120639996,-383.59816831,0.00013698,2]
[353901467,1740120640005,-160.9008652,0.00013698,2]
[353901468,1740120640014,-522.1201491,0.00013698,2]
[353901469,1740120640023,-14329.18,0.00013698,2]
[353901470,1740120640032,-505.22297044,0.00013698,2]
[353901471,1740120640041,-503.99254148,0.00013698,2]
[353901472,1740120640050,-500.0,0.00013698,2]
[353901473,1740120640059,-2108.3,0.00013698,2]
[353901474,1740120640068,-2810.54,0.00013698,2]
[353901475,1740120640078,-26041.13,0.00013698,2]
[353901476,1740120640087,-500.0,0.00013698,2]
[353901477,1740120640096,-1819.15,0.00013698,2]
[353901478,1740120640105,-1091.54,0.00013698,2]
[353901479,1740120640115,-503.74022399,0.00013698,2]
[353901480,1740120640124,-506.60081909,0.00013698,2]
[353901481,1740120640134,-504.46596772,0.00013698,2]
[353901483,1740120640144,-1402.99,0.00013698,2]
[353901485,1740120640153,-553.25,0.00013698,2]
[353901486,1740120640163,-500.0,0.00013698,2]
[353901487,1740120640172,-500.0,0.00013698,2]
[353901488,1740120640181,-637.86,0.00013698,2]
[353901489,1740120640190,-1020.28,0.00013698,2]
[353901490,1740120640199,-964.2,0.00013698,2]
[353901491,1740120640208,-503.2948386,0.00013698,2]
[353901492,1740120640217,-500.0,0.00013698,2]
[353901493,1740120640226,-500.0,0.00013698,2]
[353901494,1740120640235,-500.0,0.00013698,2]
[353901495,1740120640244,-500.0,0.00013698,2]
[353901496,1740120640253,-503.23080828,0.00013698,2]
[353901497,1740120640262,-500.0,0.00013698,2]
[353901498,1740120640271,-504.99505626,0.00013698,2]
[353901499,1740120640281,-624.51204362,0.00013698,2]
[353901500,1740120640290,-503.95333104,0.00013698,2]
[353901501,1740120640299,-508.4735218,0.00013698,2]
[353901502,1740120640308,-500.0,0.00013698,2]
[353901503,1740120640317,-500.0,0.00013698,2]
[353901504,1740120640326,-1691.25,0.00013698,2]
[353901505,1740120640336,-501.64666334,0.00013698,2]
[353901506,1740120640345,-936.31,0.00013698,2]
[353901507,1740120640354,-502.83001969,0.00013698,2]
[353901508,1740120640363,-503.40814756,0.00013698,2]
[353901510,1740120640372,-1105.84,0.00013698,2]
[353901511,1740120640381,-500.0,0.00013698,2]
[353901512,1740120640391,-500.0,0.00013698,2]
[353901513,1740120640400,-500.0,0.00013698,2]
[353901514,1740120640409,-504.17797113,0.00013698,2]
[353901515,1740120640419,-288.49302939,0.00013698,2]
[353901516,1740120640427,-500.0,0.00013698,2]
[353901517,1740120640436,-504.13573299,0.00013698,2]
[353901518,1740120640445,-2604.99,0.00013698,2]
[353901519,1740120640454,-500.0,0.00013698,2]
[353901520,1740120640464,-501.85779859,0.00013698,2]
[353901521,1740120640473,-500.0,0.00013698,2]
[353901522,1740120640482,-3205.2,0.00013698,2]
[353901523,1740120640491,-4796.56,0.00013698,2]
[353901524,1740120640500,-404.55036093,0.00013698,2]
[353901525,1740120640510,-503.20230427,0.00013698,2]
[353901527,1740120640519,-505.69275992,0.00013698,2]
[353901529,1740120640528,-11062.54,0.00013698,2]
[353901530,1740120640538,-502.90334253,0.00013698,2]
[353901531,1740120640547,-506.46826415,0.00013698,2]
[353901532,1740120640557,-513.46125984,0.00013698,2]
[353901533,1740120640566,-510.05816572,0.00013698,2]
[353901534,1740120640575,-818.24,0.00013698,2]
[353901535,1740120640584,-779.54,0.00013698,2]
[353901536,1740120640593,-500.0,0.00013698,2]
[353901537,1740120640602,-500.0,0.00013698,2]
[353901538,1740120640610,-500.0,0.00013698,2]
[353901539,1740120640619,-1545.02,0.00013698,2]
[353901540,1740120640628,-500.0,0.00013698,2]
[353901541,1740120640637,-500.0,0.00013698,2]
[353901542,1740120640647,-500.0,0.00013698,2]
[353901543,1740120640656,-500.0,0.00013698,2]
[353901544,1740120640666,-500.0,0.00013698,2]
[353901545,1740120640676,-500.0,0.00013698,2]
[353901546,1740120640685,-500.0,0.00013698,2]
[353901547,1740120640694,-505.68326048,0.00013698,2]
[353901548,1740120640703,-859.94,0.00013698,2]
[353901549,1740120640712,-2726.55,0.00013698,2]
[353901550,1740120640722,-1924.98,0.00013698,2]
[353901551,1740120640732,-500.0,0.00013698,2]
[353901552,1740120640741,-612.97,0.00013698,2]
[353901553,1740120640750,-502.52825039,0.00013698,2]
[353901554,1740120640759,-503.39658544,0.00013698,2]
[353901555,1740120640769,-500.0,0.00013698,2]
[353901556,1740120640778,-500.0,0.00013698,2]
[353901557,1740120640787,-1670.96,0.00013698,2]
[353901558,1740120640800,-502.31630267,0.00013698,2]
[353901559,1740120640809,-500.0,0.00013698,2]
[353901560,1740120640818,-549.67398327,0.00013698,2]
[353901561,1740120640827,-500.0,0.00013698,2]
[353901562,1740120640836,-500.0,0.00013698,2]
[353901563,1740120640846,-506.57160637,0.00013698,2]
[353901564,1740120640855,-1097.25,0.00013698,2]
[353901565,1740120640865,-2370.75,0.00013698,2]
[353901566,1740120640875,-500.0,0.00013698,2]
[353901567,1740120640884,-503.42446607,0.00013698,2]
[353901568,1740120640894,-508.75185476,0.00013698,2]
[353901569,1740120640903,-504.19683922,0.00013698,2]
[353901570,1740120640913,-541.24027418,0.00013698,2]
[353901571,1740120640922,-500.0,0.00013698,2]
[353901572,1740120640932,-500.59182267,0.00013698,2]
[353901573,1740120640941,-501.90517466,0.00013698,2]
[353901574,1740120640951,-500.0,0.00013698,2]
[353901575,1740120640960,-901.18,0.00013698,2]
[353901576,1740120640969,-5011.77,0.00013698,2]
[353901577,1740120640979,-500.38466599,0.00013698,2]
[353901578,1740120640987,-210.0944019,0.00013698,2]
[353901579,1740120640997,-500.0,0.00013698,2]
[353901580,1740120641006,-500.0,0.00013698,2]
[353901581,1740120641015,-504.58369868,0.00013698,2]
[353901582,1740120641024,-266.71766763,0.00013698,2]
[353901583,1740120641033,-503.89516596,0.00013698,2]
[353901584,1740120641042,-500.0,0.00013698,2]
[353901585,1740120641140,-542.91681949,0.00013698,2]
[353901586,1740120641150,-502.83514085,0.00013698,2]
[353901587,1740120641159,-1698.63,0.00013698,2]
[353901588,1740120641168,-727.27,0.00013698,2]
[353901589,1740120641178,-727.27,0.00013698,2]
[353901590,1740120641188,-727.27,0.00013698,2]
[353901591,1740120641197,-501.28230942,0.00013698,2]
[353901592,1740120641206,-727.27,0.00013698,2]
[353901593,1740120641215,-727.27,0.00013698,2]
[353901594,1740120641224,-727.27,0.00013698,2]
[353901595,1740120641233,-500.0,0.00013698,2]
[353901596,1740120641243,-727.27,0.00013698,2]
[353901597,1740120641252,-727.27,0.00013698,2]
[353901598,1740120641262,-727.27,0.00013698,2]
[353901599,1740120641271,-727.27,0.00013698,2]
[353901600,1740120641280,-727.27,0.00013698,2]
[353901601,1740120641290,-500.0,0.00013698,2]
[353901602,1740120641299,-727.27,0.00013698,2]
[353901603,1740120641309,-727.27,0.00013698,2]
[353901604,1740120641318,-727.27,0.00013698,2]
[353901605,1740120641328,-727.27,0.00013698,2]
[353901606,1740120641338,-508.82555335,0.00013698,2]
[353901607,1740120641347,-727.27,0.00013698,2]
[353901608,1740120641356,-727.27,0.00013698,2]
[353901609,1740120641365,-500.0,0.00013698,2]
[353901610,1740120641375,-500.0,0.00013698,2]
[353901611,1740120641385,-199.138979,0.00013698,2]
[353901612,1740120641394,-500.0,0.00013698,2]
[353901613,1740120641403,-500.0,0.00013698,2]
[353901614,1740120641413,-500.0,0.00013698,2]
[353901615,1740120641422,-529.41488369,0.00013698,2]
[353901616,1740120641433,-500.0,0.00013698,2]
[353901617,1740120641443,-179.78425889,0.00013699,2]
[353901618,1740120641452,-343.133438,0.00013699,2]
[353901619,1740120641461,-1192.383771,0.00013699,2]
[353901620,1740120641470,-58361.6845521,0.00013699,2]
[353901621,1740120641479,-500.0,0.00013699,2]
[353901622,1740120641488,-500.0,0.00013699,2]
[353901623,1740120641498,-500.0,0.00013699,2]
[353901624,1740120641507,-500.0,0.00013699,2]
[353901625,1740120641515,-500.0,0.00013699,2]
[353901626,1740120641525,-500.0,0.00013699,2]
[353901627,1740120641534,-500.0,0.00013699,2]
[353901628,1740120641543,-500.0,0.00013699,2]
[353901629,1740120641553,-500.0,0.00013699,2]
[353901630,1740120641562,-500.0,0.00013699,2]
[353901631,1740120641571,-500.0,0.00013699,2]
[353901632,1740120641580,-540.95745005,0.00013699,2]
[353901633,1740120641589,-500.0,0.00013699,2]
[353901634,1740120641598,-500.0,0.00013699,2]
[353901635,1740120641608,-500.0,0.00013699,2]
[353901636,1740120641618,-500.0,0.00013699,2]
[353901637,1740120641627,-500.0,0.00013699,2]
[353901638,1740120641637,-500.0,0.00013699,2]
[353901639,1740120641647,-500.0,0.00013699,2]
[353901640,1740120641657,-500.0,0.00013699,2]
[353901641,1740120641667,-500.0,0.00013699,2]
[353901642,1740120641676,-500.0,0.00013699,2]
[353901643,1740120641686,-500.0,0.00013699,2]
[353901644,1740120641695,-500.0,0.00013699,2]
[353901645,1740120641704,-500.0,0.00013699,2]
[353901646,1740120641714,-500.0,0.00013699,2]
[353901647,1740120641723,-500.0,0.00013699,2]
[353901648,1740120641732,-500.0,0.00013699,2]
[353901649,1740120641742,-500.0,0.00013699,2]
[353901650,1740120641751,-500.0,0.00013699,2]
[353901651,1740120641760,-500.0,0.00013699,2]
[353901652,1740120641769,-500.0,0.00013699,2]
[353901653,1740120641778,-500.0,0.00013699,2]
[353901654,1740120641787,-170.95652135,0.00013699,2]
[353901655,1740120641801,-500.0,0.00013699,2]
[353901656,1740120641811,-500.0,0.00013699,2]
[353901657,1740120641820,-500.0,0.00013699,2]
[353901658,1740120641830,-500.0,0.00013699,2]
[353901659,1740120641839,-500.0,0.00013699,2]
[353901660,1740120641848,-500.0,0.00013699,2]
[353901661,1740120641857,-500.0,0.00013699,2]
[353901662,1740120641867,-500.0,0.00013699,2]
[353901663,1740120641877,-500.0,0.00013699,2]
[353901664,1740120641887,-500.0,0.00013699,2]
[353901665,1740120641896,-500.0,0.00013699,2]
[353901666,1740120641905,-367.09565213,0.00013699,2]
[353901667,1740120641914,-727.27,0.00013778,2]
[353901668,1740120641923,-727.27,0.00013778,2]
[353901669,1740120641932,-160.0,0.00013779,2]
[353901670,1740120641942,-500.0,0.00013779,2]
[353901671,1740120641951,-727.27,0.00013779,2]
[353901672,1740120641960,-727.27,0.00013779,2]